No of Trans,Dept Family,Entity Name,Cert Date,Supplier Name,Reference,Gross Amt,Group/Department,Type of Expenditure - Subjective Codes
1,DCMS,EH,10/03/2015,A Game Sports Ltd,20068892,"44,640.00",National Collections-Historic Properties Department,Plant & Equipment > #10k
2,DCMS,EH,24/03/2015,Access Platform Sales Ltd,40094619,"52,200.00",National Collections-Property Maintenance Programme,Plant & Equipment > #10k
3,DCMS,EH,23/03/2015,Acclaim Safety Systems Ltd,40094266,"26,400.00",National Collections-Head of Estates,System Developments <#50k
4,DCMS,EH,10/04/2015,Action Workspace,40097156,"26,097.60",National Collections-Capital Investment Programme,Plant & Equipment > #10k
5,DCMS,EH,17/03/2015,Advanced Direct Mail  Ltd,40094486,"355,095.26",National Collections-Marketing,Marketing Distribution
6,DCMS,EH,09/04/2015,Alan Nuttall Ltd,40097810,"64,980.00",National Collections-Capital Investment Programme,WIP Operational Building Works
7,DCMS,EH,10/04/2015,Alastair Coey Architects,40097332,"34,800.00",National Advice & Information-Government Advice Department,Fees for Professional Advice
8,DCMS,EH,07/04/2015,Askins & Little Stonemasonry Specialists,40097410,"31,606.61",National Collections-Capital Investment Programme,Planned Maintenance
9,DCMS,EH,27/03/2015,BaileyGomm Limited,40092840,"28,343.20",National Collections-Property Maintenance Programme,Planned Maintenance
10,DCMS,EH,17/03/2015,Barbican Research Associates Ltd,40093300,"30,000.00",Heritage Protection & Planning-Heritage Protection,Hist Environ Prog Projects Gra
11,DCMS,EH,17/03/2015,Barbican Research Associates Ltd,40094444,"64,000.00",Heritage Protection & Planning-Heritage Protection,Hist Environ Prog Projects Gra
12,DCMS,EH,30/03/2015,Ben Burgess Newmarket,20069122,"45,600.00",National Collections-Property Maintenance Programme,Plant & Equipment > #10k
13,DCMS,EH,25/03/2015,Bickling PCC,82003772,"27,153.00",Heritage Protection & Planning-Nat. Planning & Conservation,PLACES OF WORSHIPGRANTS PAYABLE PLACES OF WORSHIP
14,DCMS,EH,13/03/2015,Bilfinger Europa Fac Management Ltd,40094388,192.94,Resources-Human Resources,Annual Cyclical Works-Building
15,DCMS,EH,13/03/2015,Bilfinger Europa Fac Management Ltd,40094388,"5,763.00",Resources-Human Resources,Annual Cyclical Works-Building
16,DCMS,EH,13/03/2015,Bilfinger Europa Fac Management Ltd,40094388,"9,765.28",Resources-Human Resources,Annual Cyclical Work M & E
17,DCMS,EH,13/03/2015,Bilfinger Europa Fac Management Ltd,40094388,"10,628.48",Resources-Human Resources,Office Cleaning
18,DCMS,EH,13/03/2015,Bilfinger Europa Fac Management Ltd,40094388,"6,236.70",Resources-Human Resources,Office Security & Cash Collect
19,DCMS,EH,24/03/2015,Bilfinger Europa Fac Management Ltd,40095358,192.94,Resources-Human Resources,Annual Cyclical Works-Building
20,DCMS,EH,24/03/2015,Bilfinger Europa Fac Management Ltd,40095358,"5,763.00",Resources-Human Resources,Annual Cyclical Works-Building
21,DCMS,EH,24/03/2015,Bilfinger Europa Fac Management Ltd,40095358,"9,765.28",Resources-Human Resources,Annual Cyclical Work M & E
22,DCMS,EH,24/03/2015,Bilfinger Europa Fac Management Ltd,40095358,"10,628.48",Resources-Human Resources,Office Cleaning
23,DCMS,EH,24/03/2015,Bilfinger Europa Fac Management Ltd,40095358,"6,236.70",Resources-Human Resources,Office Security & Cash Collect
24,DCMS,EH,13/04/2015,Bilfinger Europa Fac Management Ltd,40098352,192.94,Resources-Human Resources,Annual Cyclical Works-Building
25,DCMS,EH,13/04/2015,Bilfinger Europa Fac Management Ltd,40098352,"9,765.28",Resources-Human Resources,Annual Cyclical Work M & E
26,DCMS,EH,13/04/2015,Bilfinger Europa Fac Management Ltd,40098352,"5,763.00",Resources-Human Resources,Annual Cyclical Works-Building
27,DCMS,EH,13/04/2015,Bilfinger Europa Fac Management Ltd,40098352,"10,628.48",Resources-Human Resources,Office Cleaning
28,DCMS,EH,13/04/2015,Bilfinger Europa Fac Management Ltd,40098352,"6,236.70",Resources-Human Resources,Office Security & Cash Collect
29,DCMS,EH,06/03/2015,Birmingham CC- Property Services,82003651,"30,898.00",Heritage Protection & Planning-Nat. Planning & Conservation,HISTORIC BUILDINGSGRANTS PAYABLE HISTORIC BUILDINGS
30,DCMS,EH,20/03/2015,Birmingham City Council,82003715,"48,870.00",Heritage Protection & Planning-Nat. Planning & Conservation,HISTORIC BUILDINGSGRANTS PAYABLE HISTORIC BUILDINGS
31,DCMS,EH,20/03/2015,Birmingham City Council,82003716,"32,579.00",Heritage Protection & Planning-Nat. Planning & Conservation,HISTORIC BUILDINGSGRANTS PAYABLE HISTORIC BUILDINGS
32,DCMS,EH,16/03/2015,Blackpool Council,82003697,"60,000.00",Heritage Protection & Planning-Nat. Planning & Conservation,HISTORIC BUILDINGSGRANTS PAYABLE HISTORIC BUILDINGS
33,DCMS,EH,20/03/2015,Bolton Methodist Mission,82003727,"35,000.00",Heritage Protection & Planning-Nat. Planning & Conservation,PLACES OF WORSHIPGRANTS PAYABLE PLACES OF WORSHIP
34,DCMS,EH,31/03/2015,Bond Dickinson LLP,40094584,"29,130.00",National Collections-National Collections Centre,Legal Fees
35,DCMS,EH,26/03/2015,Bond Dickinson LLP,20069080,"90,000.00",National Collections-Capital Investment Programme,Operational Buildings
36,DCMS,EH,24/03/2015,Bond Dickinson LLP Client Account,20069058,"100,476.00",National Collections-Capital Investment Programme,Operational Buildings
37,DCMS,EH,16/03/2015,Boston Borough Council,90514177,"50,000.00",Heritage Protection & Planning-Nat. Planning & Conservation,AREAGRANTS PAYABLE AREA
38,DCMS,EH,30/03/2015,Bournemouth University,81003420,"61,425.70",Heritage Protection & Planning-Heritage Protection,ARCHAEOLOGY GRANTSGRANTS PAYABLE ARCHAEOLOGY GRANTS
39,DCMS,EH,10/04/2015,Bright 3D,40097694,"1,128.00",National Collections-Capital Investment Programme,"WIP Exhib, Displays & Fit Out"
40,DCMS,EH,10/04/2015,Bright 3D,40097694,"8,460.00",National Collections-Capital Investment Programme,"WIP Exhib, Displays & Fit Out"
41,DCMS,EH,10/04/2015,Bright 3D,40097694,"20,520.00",National Collections-Capital Investment Programme,Exhibits/Displays
42,DCMS,EH,10/04/2015,Bright 3D,40097694,"47,559.60",National Collections-Capital Investment Programme,Exhibits/Displays
43,DCMS,EH,10/04/2015,Bright 3D,40097694,"3,780.00",National Collections-Curatorial Department,"WIP Exhib, Displays & Fit Out"
44,DCMS,EH,16/03/2015,Bristol City Council General,82003701,"34,986.00",Heritage Protection & Planning-Nat. Planning & Conservation,HISTORIC BUILDINGSGRANTS PAYABLE HISTORIC BUILDINGS
45,DCMS,EH,31/03/2015,Britannia Coaches,40095097,"86,400.00",National Collections-Capital Investment Programme,Plant & Equipment > #10k
46,DCMS,EH,06/03/2015,Buttress,20068855,"-12,424.50",National Collections-Asset Management Plan,Fees for Professional Advice
47,DCMS,EH,06/03/2015,Buttress,20068857,"-13,630.80",National Collections-Asset Management Plan,Fees for Professional Advice
48,DCMS,EH,23/03/2015,Buxton Building Contractors Ltd,40095700,"316,660.52",National Collections-Capital Investment Programme,WIP Operational Building Works
49,DCMS,EH,09/04/2015,Buxton Building Contractors Ltd,40096904,"60,301.32",National Collections-Capital Investment Programme,WIP Operational Building Works
50,DCMS,EH,26/03/2015,C&O Group Ltd,40095905,"17,563.86",National Collections-Capital Investment Programme,Vehicles > #10k
51,DCMS,EH,26/03/2015,C&O Group Ltd,40095905,"17,563.87",National Collections-Capital Investment Programme,Vehicles > #10k
52,DCMS,EH,06/03/2015,Calvary Charismatic Baptist Church,82003668,"25,413.00",Heritage Protection & Planning-Nat. Planning & Conservation,HISTORIC BUILDINGSGRANTS PAYABLE HISTORIC BUILDINGS
53,DCMS,EH,09/03/2015,Capita Secure Information Solutions Ltd,40092990,"29,268.00",Resources-IMT,Computer Equipment Hire
54,DCMS,EH,09/03/2015,Capita Secure Information Solutions Ltd,40092990,"2,439.00",Resources-IMT,System Developments <#50k
55,DCMS,EH,17/03/2015,Capita Secure Information Solutions Ltd,40093973,"53,362.79",Resources-IMT,ITFM
56,DCMS,EH,11/03/2015,Capita Secure Information Solutions Ltd,40093998,"68,826.41",Resources-IMT,ITFM
57,DCMS,EH,19/03/2015,Capita Secure Information Solutions Ltd,40094235,"-96,000.00",Resources-IMT,ITFM
58,DCMS,EH,13/03/2015,Capita Secure Information Solutions Ltd,40094471,"34,073.98",Resources-IMT,ITFM
59,DCMS,EH,19/03/2015,Capita Secure Information Solutions Ltd,40094570,"10,650.00",Resources-Finance & Procurement Dept,Software Maintenance
60,DCMS,EH,19/03/2015,Capita Secure Information Solutions Ltd,40094570,"31,950.00",Resources-Finance & Procurement Dept,Software Maintenance
61,DCMS,EH,19/03/2015,Capita Secure Information Solutions Ltd,40094899,"86,400.00",Resources-IMT,Computer Equipment <#10k
62,DCMS,EH,31/03/2015,Capita Secure Information Solutions Ltd,40094903,"25,200.00",Resources-IMT,WIP Computer Consultancy
63,DCMS,EH,31/03/2015,Capita Secure Information Solutions Ltd,40094911,"25,712.52",Resources-IMT,Computer Consultancy
64,DCMS,EH,19/03/2015,Capita Secure Information Solutions Ltd,40095254,"251,116.75",Resources-IMT,ITFM
65,DCMS,EH,19/03/2015,Capita Secure Information Solutions Ltd,40095257,"251,116.75",Resources-IMT,ITFM
66,DCMS,EH,09/04/2015,Capita Secure Information Solutions Ltd,40096709,"76,806.00",Resources-IMT,ITFM
67,DCMS,EH,08/04/2015,Capita Secure Information Solutions Ltd,40096835,"41,904.00",Resources-IMT,Computer Equipment <#10k
68,DCMS,EH,08/04/2015,Capita Secure Information Solutions Ltd,40096835,"7,220.40",Resources-IMT,Computer Equipment <#10k
69,DCMS,EH,02/04/2015,Capita Secure Information Solutions Ltd,40096841,"36,000.00",Resources-IMT,Computer Consultancy
70,DCMS,EH,02/04/2015,Capita Secure Information Solutions Ltd,40096841,"6,600.00",Resources-IMT,Computer Consultancy
71,DCMS,EH,02/04/2015,Capita Secure Information Solutions Ltd,40096841,"16,200.00",Resources-IMT,Computer Consultancy
72,DCMS,EH,09/04/2015,Capita Secure Information Solutions Ltd,40097832,"57,600.00",Resources-IMT,Computer Equipment <#10k
73,DCMS,EH,13/04/2015,Carat Leeds Ltd,40098702,"-12,000.00",National Collections-Marketing,Marketing Consultants
74,DCMS,EH,10/03/2015,Castle Howard Estate Ltd,82003671,"102,105.00",Heritage Protection & Planning-Nat. Planning & Conservation,HISTORIC BUILDINGSGRANTS PAYABLE HISTORIC BUILDINGS
75,DCMS,EH,11/03/2015,CB Richard Ellis Ltd,40094241,"95,010.00",Resources-Office Estate,Rent - Operating Leases
76,DCMS,EH,11/03/2015,CB Richard Ellis Ltd,40094241,"37,394.40",Resources-Office Estate,Building Service Charges
77,DCMS,EH,11/03/2015,CB Richard Ellis Ltd,40094242,"282,600.00",Resources-Office Estate,Rent - Operating Leases
78,DCMS,EH,11/03/2015,CB Richard Ellis Ltd,40094242,"98,977.20",Resources-Office Estate,Building Service Charges
79,DCMS,EH,24/03/2015,"Celestial Church of Christ, Elephant &",82003752,"53,500.00",Heritage Protection & Planning-Nat. Planning & Conservation,PLACES OF WORSHIPGRANTS PAYABLE PLACES OF WORSHIP
80,DCMS,EH,04/03/2015,Chartered Institute for Archaeologists,81003253,"25,000.00",Heritage Protection & Planning-Heritage Protection,ENABLING PROGRAMMESENABLING PROGRAMMES ENABLING PROGRAMMES
81,DCMS,EH,16/03/2015,Charterhouse Coventry Preservation Trust,82003694,"101,544.00",Heritage Protection & Planning-Nat. Planning & Conservation,HISTORIC BUILDINGSGRANTS PAYABLE HISTORIC BUILDINGS
82,DCMS,EH,09/04/2015,Chiswick House and Gardens Trust,40096991,"70,000.00",National Collections-National Collections Centre,Other Grants
83,DCMS,EH,13/04/2015,Chris Blandford Associates,40090142,"32,238.22",National Collections-Capital Investment Programme,Fees for Professional Advice
84,DCMS,EH,09/04/2015,Chris Blandford Associates,40097720,"14,751.82",National Collections-Capital Investment Programme,WIP Professional Works Advice
85,DCMS,EH,09/04/2015,Chris Blandford Associates,40097720,"14,043.90",National Collections-Capital Investment Programme,Fees for Professional Advice
86,DCMS,EH,09/04/2015,Chris Blandford Associates,40098027,"-32,238.22",National Collections-Capital Investment Programme,Fees for Professional Advice
87,DCMS,EH,09/04/2015,Cirrus e-learning (A div of MKC Training,40098032,"-10,380.00",Heritage Protection & Planning-Heritage Protection,Hist Environ Prog Projects Gra
88,DCMS,EH,23/03/2015,Civic Voice,90514229,"64,925.00",Heritage Protection & Planning-Nat. Planning & Conservation,OTHER GRANTSGRANTS PAYABLE OTHER GRANTS
89,DCMS,EH,26/03/2015,Civic Voice,90514247,"127,150.00",Heritage Protection & Planning-Nat. Planning & Conservation,OTHER GRANTSGRANTS PAYABLE OTHER GRANTS
90,DCMS,EH,31/03/2015,Cloud Buy Plc,40096638,"9,000.00",National Advice & Information-NA&I Centre,Software Maintenance
91,DCMS,EH,31/03/2015,Cloud Buy Plc,40096638,"6,600.00",National Advice & Information-NA&I Centre,Software Maintenance
92,DCMS,EH,31/03/2015,Cloud Buy Plc,40096638,"2,880.00",National Advice & Information-NA&I Centre,Software Maintenance
93,DCMS,EH,31/03/2015,Cloud Buy Plc,40096638,"2,280.00",National Advice & Information-NA&I Centre,Software Maintenance
94,DCMS,EH,31/03/2015,Cloud Buy Plc,40096638,576,National Advice & Information-NA&I Centre,Software Maintenance
95,DCMS,EH,31/03/2015,Cloud Buy Plc,40096638,"6,000.00",National Advice & Information-NA&I Centre,Software Licences <#10k
96,DCMS,EH,01/04/2015,Coblands Landscapes Ltd,40096262,"1,879.19",National Collections-Capital Investment Programme,WIP Operational Building Works
97,DCMS,EH,01/04/2015,Coblands Landscapes Ltd,40096262,210,National Collections-Capital Investment Programme,WIP Operational Building Works
98,DCMS,EH,01/04/2015,Coblands Landscapes Ltd,40096262,"1,586.63",National Collections-Capital Investment Programme,WIP Operational Building Works
99,DCMS,EH,01/04/2015,Coblands Landscapes Ltd,40096262,"32,003.86",National Collections-Capital Investment Programme,WIP Operational Building Works
100,DCMS,EH,01/04/2015,Coblands Landscapes Ltd,40096262,216,National Collections-Capital Investment Programme,WIP Operational Building Works
101,DCMS,EH,01/04/2015,Coblands Landscapes Ltd,40096262,"1,018.56",National Collections-Capital Investment Programme,WIP Operational Building Works
102,DCMS,EH,01/04/2015,Coblands Landscapes Ltd,40096262,948.86,National Collections-Capital Investment Programme,WIP Operational Building Works
103,DCMS,EH,01/04/2015,Coblands Landscapes Ltd,40096262,808.18,National Collections-Capital Investment Programme,WIP Operational Building Works
104,DCMS,EH,13/04/2015,Colin Avery Stone Masons,40098501,"36,480.00",National Collections-Property Maintenance Programme,Planned Maintenance
105,DCMS,EH,25/03/2015,Concept Displays (S.W) Ltd,40096218,"76,356.00",National Collections-Capital Investment Programme,Exhibits/Displays
106,DCMS,EH,25/03/2015,Concept Displays (S.W) Ltd,40096274,"88,645.20",National Collections-Capital Investment Programme,Exhibits/Displays
107,DCMS,EH,31/03/2015,Connick Tree Care Brighton Ltd,40096509,"35,749.80",National Collections-Property Maintenance Programme,Annual Cyclical Work Grounds
108,DCMS,EH,18/03/2015,Cooper8 Ltd,40094089,"49,704.00",National Collections-Capital Investment Programme,Plant & Equipment > #10k
109,DCMS,EH,23/03/2015,Cooper8 Ltd,40095412,"56,980.80",National Collections-Capital Investment Programme,Wrks for Operational Buildings
110,DCMS,EH,02/04/2015,Cooper8 Ltd,40096365,"30,000.00",National Collections-Historic Properties Department,Equipment <#10k
111,DCMS,EH,30/03/2015,Cooper8 Ltd,40096371,"27,840.00",National Collections-Capital Investment Programme,WIP Operational Building Works
112,DCMS,EH,19/03/2015,Cotswold Archaeology,40095061,"27,303.74",Heritage Protection & Planning-Heritage Protection,Hist Environ Prog Projects Gra
113,DCMS,EH,02/04/2015,Cotswold Archaeology,40095762,"32,764.49",Heritage Protection & Planning-Heritage Protection,Hist Environ Prog Projects Gra
114,DCMS,EH,09/04/2015,Cotswold Archaeology,40096279,"-32,764.49",Heritage Protection & Planning-Heritage Protection,Hist Environ Prog Projects Gra
115,DCMS,EH,30/03/2015,Council British Arch York,81003442,"50,000.00",Heritage Protection & Planning-Heritage Protection,ENABLING PROGRAMMESENABLING PROGRAMMES ENABLING PROGRAMMES
116,DCMS,EH,08/04/2015,CPI Card Group - UK Limited,40096821,"60,790.80",National Collections-Marketing,Print and Production
117,DCMS,EH,06/03/2015,Croft Building and Conservation Ltd,40093887,"52,440.00",Heritage Protection & Planning-Nat. Planning & Conservation,Works for Heritage Buildings
118,DCMS,EH,08/04/2015,Croft Building and Conservation Ltd,40097401,"36,481.79",Heritage Protection & Planning-Nat. Planning & Conservation,Works for Heritage Buildings
119,DCMS,EH,04/03/2015,Croyland Abbey PCC,82003643,"114,290.00",Heritage Protection & Planning-Nat. Planning & Conservation,HISTORIC BUILDINGSGRANTS PAYABLE HISTORIC BUILDINGS
120,DCMS,EH,11/03/2015,Cumberland Construction Ltd,40094042,"52,427.80",National Collections-Capital Investment Programme,WIP Operational Building Works
121,DCMS,EH,10/04/2015,David Wilsons Trailers Ltd,40096695,"50,355.12",Heritage Protection & Planning-Nat. Planning & Conservation,Plant & Vehicles <#10k
122,DCMS,EH,16/03/2015,Derby City Council,90514173,"26,368.00",Heritage Protection & Planning-Nat. Planning & Conservation,AREAGRANTS PAYABLE AREA
123,DCMS,EH,16/03/2015,Derby City Council,90514175,"50,000.00",Heritage Protection & Planning-Nat. Planning & Conservation,AREAGRANTS PAYABLE AREA
124,DCMS,EH,16/03/2015,Derby City Council,90514176,"32,411.00",Heritage Protection & Planning-Nat. Planning & Conservation,AREAGRANTS PAYABLE AREA
125,DCMS,EH,24/03/2015,Derbyshire County Council,82003747,"50,000.00",Heritage Protection & Planning-Nat. Planning & Conservation,HISTORIC BUILDINGSGRANTS PAYABLE HISTORIC BUILDINGS
126,DCMS,EH,10/04/2015,Designmap,40096519,"12,000.00",National Collections-Curatorial Department,Exhibits/Displays
127,DCMS,EH,10/04/2015,Designmap,40096519,"61,626.00",National Collections-Curatorial Department,Exhibits/Displays
128,DCMS,EH,24/03/2015,Devon and Exeter Institution,82003749,"36,500.00",Heritage Protection & Planning-Nat. Planning & Conservation,HISTORIC BUILDINGSGRANTS PAYABLE HISTORIC BUILDINGS
129,DCMS,EH,02/03/2015,DST Global Insight Group Ltd,40093366,"66,873.36",Resources-IMT,Software Maintenance
130,DCMS,EH,09/04/2015,DST Global Insight Group Ltd,40097620,"28,800.00",Resources-IMT,Software Licences <#10k
131,DCMS,EH,09/04/2015,DST Global Insight Group Ltd,40097620,"10,551.00",Resources-IMT,WIP Systems Development
132,DCMS,EH,09/04/2015,DST Global Insight Group Ltd,40097620,"11,202.00",Resources-IMT,Software Maintenance
133,DCMS,EH,09/04/2015,DST Global Insight Group Ltd,40097620,"36,360.00",Resources-IMT,Software Maintenance
134,DCMS,EH,13/04/2015,DST Global Insight Group Ltd,40097621,"38,496.00",Resources-IMT,Software Licences <#10k
135,DCMS,EH,30/03/2015,Dudley Metropolitan Borough Council,90514245,"50,000.00",Heritage Protection & Planning-Nat. Planning & Conservation,AREAGRANTS PAYABLE AREA
136,DCMS,EH,30/03/2015,Dudley Metropolitan Borough Council,90514245,"39,000.00",Heritage Protection & Planning-Nat. Planning & Conservation,AREAGRANTS PAYABLE AREA
137,DCMS,EH,30/03/2015,Dudley Metropolitan Borough Council,90514245,"5,430.00",Heritage Protection & Planning-Nat. Planning & Conservation,AREAGRANTS PAYABLE AREA
138,DCMS,EH,25/03/2015,EDF,20069066,"25,098.92",Resources-Corporate,Electricity
139,DCMS,EH,27/03/2015,Electrosonic Ltd,40096544,"41,620.56",National Collections-Capital Investment Programme,Plant & Equipment > #10k
140,DCMS,EH,23/03/2015,Eltek Ltd,40095722,"47,371.20",Heritage Protection & Planning-Nat. Planning & Conservation,Technical Research
141,DCMS,EH,06/03/2015,Erith Contractors Ltd,40093068,"317,628.42",Heritage Protection & Planning-Nat. Planning & Conservation,Works for Heritage Buildings
142,DCMS,EH,10/04/2015,Evolution Dome Ltd,40096826,"16,800.00",National Collections-Capital Investment Programme,Plant & Equipment > #10k
143,DCMS,EH,10/04/2015,Evolution Dome Ltd,40096826,858,National Collections-Capital Investment Programme,Plant & Equipment > #10k
144,DCMS,EH,10/04/2015,Evolution Dome Ltd,40096826,"3,114.00",National Collections-Capital Investment Programme,Plant & Equipment > #10k
145,DCMS,EH,10/04/2015,Evolution Dome Ltd,40096826,"3,132.00",National Collections-Capital Investment Programme,Plant & Equipment > #10k
146,DCMS,EH,10/04/2015,Evolution Dome Ltd,40096826,429.3,National Collections-Capital Investment Programme,Plant & Equipment > #10k
147,DCMS,EH,10/04/2015,Evolution Dome Ltd,40096826,148.8,National Collections-Capital Investment Programme,Plant & Equipment > #10k
148,DCMS,EH,10/04/2015,Evolution Dome Ltd,40096826,76.8,National Collections-Capital Investment Programme,Plant & Equipment > #10k
149,DCMS,EH,10/04/2015,Evolution Dome Ltd,40096826,"4,194.96",National Collections-Capital Investment Programme,Plant & Equipment > #10k
150,DCMS,EH,10/04/2015,Evolution Dome Ltd,40096826,"1,782.00",National Collections-Capital Investment Programme,Plant & Equipment > #10k
151,DCMS,EH,10/04/2015,Evolution Dome Ltd,40096826,220.8,National Collections-Capital Investment Programme,Plant & Equipment > #10k
152,DCMS,EH,25/03/2015,exeGesIS Spatial Data Management,40095934,"49,071.00",Heritage Protection & Planning-Nat. Planning & Conservation,Fees for Professional Advice
153,DCMS,EH,06/03/2015,Fairhurst Ward Abbotts Ltd,40093658,"126,047.40",National Collections-Major Conservation Projects,Planned Maintenance
154,DCMS,EH,23/03/2015,Fairhurst Ward Abbotts Ltd,40095174,"193,037.14",National Collections-Major Conservation Projects,Planned Maintenance
155,DCMS,EH,23/03/2015,Fairhurst Ward Abbotts Ltd,40095174,"113,399.12",National Collections-Major Conservation Projects,Planned Maintenance
156,DCMS,EH,07/04/2015,Fairhurst Ward Abbotts Ltd,40096196,"3,452.76",National Collections-Capital Investment Programme,WIP Operational Building Works
157,DCMS,EH,07/04/2015,Fairhurst Ward Abbotts Ltd,40096196,"25,241.59",National Collections-Capital Investment Programme,WIP Operational Building Works
158,DCMS,EH,02/04/2015,Four Counties Interiors,40097201,"27,600.00",National Collections-Capital Investment Programme,Fees for Professional Advice
159,DCMS,EH,01/04/2015,G.J. Banks (I.W.) Ltd,40096460,"14,689.76",National Collections-Capital Investment Programme,Fees for Professional Advice
160,DCMS,EH,01/04/2015,G.J. Banks (I.W.) Ltd,40096460,"28,788.64",National Collections-Capital Investment Programme,WIP Professional Works Advice
161,DCMS,EH,09/03/2015,Gateshead Council,90514159,"64,834.00",Heritage Protection & Planning-Nat. Planning & Conservation,OTHER GRANTSGRANTS PAYABLE OTHER GRANTS
162,DCMS,EH,09/03/2015,Gateshead Council,90514160,"50,422.00",Heritage Protection & Planning-Nat. Planning & Conservation,OTHER GRANTSGRANTS PAYABLE OTHER GRANTS
163,DCMS,EH,09/03/2015,Gateshead Council,90514161,"52,500.00",Heritage Protection & Planning-Nat. Planning & Conservation,OTHER GRANTSGRANTS PAYABLE OTHER GRANTS
164,DCMS,EH,23/03/2015,Geotechnical Engineering Ltd,40094148,"38,482.80",National Collections-Capital Investment Programme,Excavation Costs
165,DCMS,EH,23/03/2015,Geotechnical Engineering Ltd,40095219,"34,895.04",National Collections-Capital Investment Programme,Excavation Costs
166,DCMS,EH,18/03/2015,Gillards Worldwide,40094818,"41,156.42",National Collections-Historic Properties Department,Marketing Distribution
167,DCMS,EH,16/03/2015,Go South Coast Ltd,40093701,"30,818.66",National Collections-Historic Properties Department,Agency Staff
168,DCMS,EH,13/04/2015,Graham Daws Associates Limited,40098715,"30,000.00",National Collections-Property Maintenance Programme,Planned Maintenance
169,DCMS,EH,30/03/2015,Hanson Building Products,81003459,"275,000.00",Heritage Protection & Planning-Heritage Protection,ENABLING PROGRAMMESENABLING PROGRAMMES ENABLING PROGRAMMES
170,DCMS,EH,30/03/2015,Haringey Council,90514249,"84,072.00",Heritage Protection & Planning-Nat. Planning & Conservation,AREAGRANTS PAYABLE AREA
171,DCMS,EH,09/03/2015,Harlow Property Management Ltd,40093826,"54,750.00",Resources-Office Estate,Rent - Operating Leases
172,DCMS,EH,16/03/2015,Heritage of London Trust Ops Ltd,82003678,"30,317.00",Heritage Protection & Planning-Nat. Planning & Conservation,HISTORIC BUILDINGSGRANTS PAYABLE HISTORIC BUILDINGS
173,DCMS,EH,10/03/2015,Highspeed Group Ltd,40094014,"25,500.00",National Collections-Property Maintenance Programme,Plant & Equipment > #10k
174,DCMS,EH,23/03/2015,Historic Chapels Trust,90514230,"28,835.00",Heritage Protection & Planning-Nat. Planning & Conservation,OTHER GRANTSGRANTS PAYABLE OTHER GRANTS
175,DCMS,EH,18/03/2015,Historic Property Restoration Ltd,40093923,"13,645.46",National Collections-Property Maintenance Programme,Planned Maintenance
176,DCMS,EH,18/03/2015,Historic Property Restoration Ltd,40093923,"9,972.71",National Collections-Property Maintenance Programme,Responsive Maint Building
177,DCMS,EH,18/03/2015,Historic Property Restoration Ltd,40093923,"7,026.43",National Collections-Property Maintenance Programme,Responsive Repairs M & E
178,DCMS,EH,18/03/2015,Historic Property Restoration Ltd,40093923,"1,177.13",National Collections-Property Maintenance Programme,Responsive Maint Building
179,DCMS,EH,18/03/2015,Historic Property Restoration Ltd,40093923,637.51,National Collections-Property Maintenance Programme,Leased Accomodation Maint
180,DCMS,EH,18/03/2015,Historic Property Restoration Ltd,40093923,649.78,National Collections-Property Maintenance Programme,Planned Maintenance
181,DCMS,EH,18/03/2015,Historic Property Restoration Ltd,40093924,918.24,National Collections-Property Maintenance Programme,Leased Accomodation Maint
182,DCMS,EH,18/03/2015,Historic Property Restoration Ltd,40093924,274.88,National Collections-Property Maintenance Programme,Annual Cyclical Work M & E
183,DCMS,EH,18/03/2015,Historic Property Restoration Ltd,40093924,"3,245.95",National Collections-Property Maintenance Programme,Annual Cyclical Works-Building
184,DCMS,EH,18/03/2015,Historic Property Restoration Ltd,40093924,"9,113.58",National Collections-Property Maintenance Programme,Annual Cyclical Works-Building
185,DCMS,EH,18/03/2015,Historic Property Restoration Ltd,40093924,"16,484.98",National Collections-Property Maintenance Programme,Annual Cyclical Work M & E
186,DCMS,EH,31/03/2015,Historic Property Restoration Ltd,40095216,"1,753.97",National Collections-Property Maintenance Programme,Annual Cyclical Work M & E
187,DCMS,EH,31/03/2015,Historic Property Restoration Ltd,40095216,"11,067.36",National Collections-Property Maintenance Programme,Annual Cyclical Work M & E
188,DCMS,EH,31/03/2015,Historic Property Restoration Ltd,40095216,"4,558.83",National Collections-Property Maintenance Programme,Leased Accomodation Maint
189,DCMS,EH,31/03/2015,Historic Property Restoration Ltd,40095216,"49,709.96",National Collections-Property Maintenance Programme,Annual Cyclical Works-Building
190,DCMS,EH,31/03/2015,Historic Property Restoration Ltd,40095216,"3,366.78",National Collections-Property Maintenance Programme,Annual Cyclical Works-Building
191,DCMS,EH,30/03/2015,Historic Property Restoration Ltd,40095217,"6,235.73",National Collections-Property Maintenance Programme,Responsive Maint Building
192,DCMS,EH,30/03/2015,Historic Property Restoration Ltd,40095217,"4,083.48",National Collections-Property Maintenance Programme,Responsive Maint Building
193,DCMS,EH,30/03/2015,Historic Property Restoration Ltd,40095217,445.1,National Collections-Property Maintenance Programme,Responsive Repairs M & E
194,DCMS,EH,30/03/2015,Historic Property Restoration Ltd,40095217,154.81,National Collections-Property Maintenance Programme,Planned Maintenance
195,DCMS,EH,30/03/2015,Historic Property Restoration Ltd,40095217,"8,737.06",National Collections-Property Maintenance Programme,Planned Maintenance
196,DCMS,EH,30/03/2015,Historic Property Restoration Ltd,40095217,"10,450.82",National Collections-Property Maintenance Programme,Responsive Repairs M & E
197,DCMS,EH,09/04/2015,Historic Property Restoration Ltd,40098087,"14,633.26",National Collections-Property Maintenance Programme,Annual Cyclical Work M & E
198,DCMS,EH,09/04/2015,Historic Property Restoration Ltd,40098087,"23,610.43",National Collections-Property Maintenance Programme,Annual Cyclical Works-Building
199,DCMS,EH,09/04/2015,Historic Property Restoration Ltd,40098087,"55,558.36",National Collections-Property Maintenance Programme,Annual Cyclical Works-Building
200,DCMS,EH,09/04/2015,Historic Property Restoration Ltd,40098087,"1,650.86",National Collections-Property Maintenance Programme,Leased Accomodation Maint
201,DCMS,EH,09/04/2015,Historic Property Restoration Ltd,40098087,890.87,National Collections-Property Maintenance Programme,Annual Cyclical Work M & E
202,DCMS,EH,10/04/2015,Hodgson Sayers Ltd,40097639,"24,203.05",National Collections-Property Maintenance Programme,Health & Safety Works and Fees
203,DCMS,EH,10/04/2015,Hodgson Sayers Ltd,40097639,"5,078.56",National Collections-Property Maintenance Programme,Health & Safety Works and Fees
204,DCMS,EH,20/03/2015,Horton's Estate Limited,82003726,"79,600.00",Heritage Protection & Planning-Nat. Planning & Conservation,HISTORIC BUILDINGSGRANTS PAYABLE HISTORIC BUILDINGS
205,DCMS,EH,17/03/2015,Illustrated London News Ltd,40093578,"3,088.80",National Collections-Marketing,Marketing Fulfilment
206,DCMS,EH,17/03/2015,Illustrated London News Ltd,40093578,"74,870.40",National Collections-Marketing,Print and Production
207,DCMS,EH,17/03/2015,Illustrated London News Ltd,40093578,"12,352.80",National Collections-Marketing,Digital
208,DCMS,EH,17/03/2015,Illustrated London News Ltd,40093578,"10,360.80",National Collections-Marketing,Marketing Creative
209,DCMS,EH,17/03/2015,Illustrated London News Ltd,40093578,"6,624.00",National Collections-Marketing,Consumer Photography
210,DCMS,EH,30/03/2015,Ironbridge Gorge Museum Trust Ltd,90514256,"34,092.00",Heritage Protection & Planning-Nat. Planning & Conservation,OTHER GRANTSGRANTS PAYABLE OTHER GRANTS
211,DCMS,EH,20/03/2015,Isle of Wight Council,82003742,"26,600.00",Heritage Protection & Planning-Nat. Planning & Conservation,HISTORIC BUILDINGSGRANTS PAYABLE HISTORIC BUILDINGS
212,DCMS,EH,18/03/2015,Jomanda Ltd,77000753,"4,800.00",National Collections-Historic Properties Department,Stock Goods and Souvenirs
213,DCMS,EH,18/03/2015,Jomanda Ltd,77000753,"5,299.20",National Collections-Historic Properties Department,Stock Goods and Souvenirs
214,DCMS,EH,18/03/2015,Jomanda Ltd,77000753,"2,880.00",National Collections-Historic Properties Department,Stock Goods and Souvenirs
215,DCMS,EH,18/03/2015,Jomanda Ltd,77000753,"8,640.00",National Collections-Historic Properties Department,Stock Goods and Souvenirs
216,DCMS,EH,18/03/2015,Jomanda Ltd,77000753,"5,299.20",National Collections-Historic Properties Department,Stock Goods and Souvenirs
217,DCMS,EH,24/03/2015,K3 Retail Solutions Ltd,40095413,"-10,800.00",Resources-IMT,Computer Consultancy
218,DCMS,EH,02/04/2015,K3 Retail Solutions Ltd,40097133,"27,600.00",Resources-IMT,Software Maintenance
219,DCMS,EH,02/04/2015,K3 Retail Solutions Ltd,40097144,"81,000.00",Resources-IMT,Computer Consultancy
220,DCMS,EH,13/04/2015,K3 Retail Solutions Ltd,40097147,"75,007.30",National Collections-Historic Properties Department,Equipment <#10k
221,DCMS,EH,18/03/2015,Keel Toys Ltd,77000997,"32,832.00",National Collections-Historic Properties Department,Stock Goods and Souvenirs
222,DCMS,EH,17/03/2015,Knight Frank LLP,40095020,"45,353.70",Resources-Office Estate,Rent - Operating Leases
223,DCMS,EH,17/03/2015,Knight Frank LLP,40095020,"20,290.85",Resources-Office Estate,Building Service Charges
224,DCMS,EH,24/03/2015,Leach Colour,40093784,"47,340.00",National Collections-Capital Investment Programme,Fees for Professional Advice
225,DCMS,EH,10/04/2015,Leach Colour,40097127,"9,480.00",National Advice & Information-Archives,Exhibits/Displays
226,DCMS,EH,10/04/2015,Leach Colour,40097127,"43,104.00",National Advice & Information-Archives,Exhibits/Displays
227,DCMS,EH,13/04/2015,Leica Geosystems Ltd,40097936,"64,500.00",Heritage Protection & Planning-Heritage Protection,Plant & Equipment > #10k
228,DCMS,EH,13/04/2015,Leica Geosystems Ltd,40098518,"70,500.00",Heritage Protection & Planning-Heritage Protection,Plant & Equipment > #10k
229,DCMS,EH,13/04/2015,Leica Geosystems Ltd,40098523,"-64,500.00",Heritage Protection & Planning-Heritage Protection,Plant & Equipment > #10k
230,DCMS,EH,09/04/2015,Linney Cooper Ltd,40090354,"6,713.06",National Collections-Capital Investment Programme,Exhibits/Displays
231,DCMS,EH,09/04/2015,Linney Cooper Ltd,40090354,"8,237.05",National Collections-Capital Investment Programme,Exhibits/Displays
232,DCMS,EH,09/04/2015,Linney Cooper Ltd,40090354,"17,784.07",National Collections-Capital Investment Programme,Exhibits/Displays
233,DCMS,EH,09/04/2015,Linney Cooper Ltd,40090354,"8,724.00",National Collections-Capital Investment Programme,Exhibits/Displays
234,DCMS,EH,16/03/2015,Liverpool City Council,82003690,"38,617.00",Heritage Protection & Planning-Nat. Planning & Conservation,HISTORIC BUILDINGSGRANTS PAYABLE HISTORIC BUILDINGS
235,DCMS,EH,23/03/2015,Lodge & Sons (Builders) Ltd,40092443,"48,595.00",Heritage Protection & Planning-Nat. Planning & Conservation,Fees for Professional Advice
236,DCMS,EH,05/03/2015,London Borough of Ealing,90514140,"33,583.00",Heritage Protection & Planning-Nat. Planning & Conservation,AREAGRANTS PAYABLE AREA
237,DCMS,EH,18/03/2015,London Borough of Havering,90514204,"56,986.00",Heritage Protection & Planning-Nat. Planning & Conservation,AREAGRANTS PAYABLE AREA
238,DCMS,EH,20/03/2015,London Borough of Hounslow,82003736,"150,000.00",Heritage Protection & Planning-Nat. Planning & Conservation,HISTORIC BUILDINGSGRANTS PAYABLE HISTORIC BUILDINGS
239,DCMS,EH,23/03/2015,London Borough Of Tower Hamlets,90514234,"36,375.00",Heritage Protection & Planning-Nat. Planning & Conservation,AREAGRANTS PAYABLE AREA
240,DCMS,EH,18/03/2015,Lyme Bay Cider Company Ltd,77001002,"18,754.56",National Collections-Historic Properties Department,Stock Goods and Souvenirs
241,DCMS,EH,18/03/2015,Lyme Bay Cider Company Ltd,77001002,"19,692.29",National Collections-Historic Properties Department,Stock Goods and Souvenirs
242,DCMS,EH,02/04/2015,Mainmast Conservation,40096298,"31,208.40",National Collections-Property Maintenance Programme,Planned Maintenance
243,DCMS,EH,12/03/2015,Mason Owen and Partners (Rent only),20068901,"-5,085.00",Resources-Office Estate,Rent - Operating Leases
244,DCMS,EH,12/03/2015,Mason Owen and Partners (Rent only),20068901,"-13,200.00",Resources-Office Estate,Rent - Operating Leases
245,DCMS,EH,20/03/2015,Mason Owen and Partners (Rent only),20069032,"-18,285.00",Resources-Office Estate,Rent - Operating Leases
246,DCMS,EH,25/03/2015,Melton Mowbray PCC,82003760,"63,360.00",Heritage Protection & Planning-Nat. Planning & Conservation,PLACES OF WORSHIPGRANTS PAYABLE PLACES OF WORSHIP
247,DCMS,EH,30/03/2015,Museum of London Arch Services,81003415,"25,000.00",Heritage Protection & Planning-Heritage Protection,ENABLING PROGRAMMESENABLING PROGRAMMES ENABLING PROGRAMMES
248,DCMS,EH,11/03/2015,National Trust,81003263,"41,891.20",Heritage Protection & Planning-Heritage Protection,ENABLING PROGRAMMESENABLING PROGRAMMES ENABLING PROGRAMMES
249,DCMS,EH,04/03/2015,Northampton Borough Council,82003646,"47,760.00",Heritage Protection & Planning-Nat. Planning & Conservation,HISTORIC BUILDINGSGRANTS PAYABLE HISTORIC BUILDINGS
250,DCMS,EH,24/03/2015,Nu-Weld Engineering Services Ltd,40088527,"30,920.11",National Collections-Capital Investment Programme,WIP Operational Building Works
251,DCMS,EH,23/03/2015,Nu-Weld Engineering Services Ltd,40094998,"35,231.78",National Collections-Capital Investment Programme,WIP Operational Building Works
252,DCMS,EH,23/03/2015,Nu-Weld Engineering Services Ltd,40094998,"137,464.86",National Collections-Capital Investment Programme,WIP Operational Building Works
253,DCMS,EH,23/03/2015,Nu-Weld Engineering Services Ltd,40094998,104.16,National Collections-Capital Investment Programme,Fees for Professional Advice
254,DCMS,EH,23/03/2015,Nu-Weld Engineering Services Ltd,40094998,"8,021.14",National Collections-Capital Investment Programme,WIP Operational Building Works
255,DCMS,EH,10/04/2015,Parsons Landscapes Ltd,40098562,"6,201.60",National Collections-Property Maintenance Programme,Annual Cyclical Work Grounds
256,DCMS,EH,10/04/2015,Parsons Landscapes Ltd,40098562,"4,440.00",National Collections-Property Maintenance Programme,Annual Cyclical Work Grounds
257,DCMS,EH,10/04/2015,Parsons Landscapes Ltd,40098562,"2,760.00",National Collections-Property Maintenance Programme,Annual Cyclical Work Grounds
258,DCMS,EH,10/04/2015,Parsons Landscapes Ltd,40098562,"11,760.00",National Collections-Property Maintenance Programme,Annual Cyclical Work Grounds
259,DCMS,EH,10/04/2015,Parsons Landscapes Ltd,40098562,888,National Collections-Property Maintenance Programme,Annual Cyclical Work Grounds
260,DCMS,EH,10/04/2015,Parsons Landscapes Ltd,40098562,"7,270.37",National Collections-Property Maintenance Programme,Annual Cyclical Work Grounds
261,DCMS,EH,27/03/2015,PAYE Stonework and Restoration Ltd,40095865,"26,441.72",National Collections-Capital Investment Programme,WIP Operational Building Works
262,DCMS,EH,27/03/2015,PAYE Stonework and Restoration Ltd,40095865,"50,708.28",National Collections-Capital Investment Programme,Works for Heritage Buildings
263,DCMS,EH,31/03/2015,PAYE Stonework and Restoration Ltd,40096463,"26,130.05",National Collections-Major Conservation Projects,Works for Heritage Buildings
264,DCMS,EH,13/04/2015,PAYE Stonework and Restoration Ltd,40098341,"48,436.42",National Collections-Major Conservation Projects,Works for Heritage Buildings
265,DCMS,EH,13/04/2015,PAYE Stonework and Restoration Ltd,40098342,"70,238.32",National Collections-Major Conservation Projects,Works for Heritage Buildings
266,DCMS,EH,23/03/2015,Pearce Const Barnstaple Ltd,40094478,"49,129.24",National Collections-Property Maintenance Programme,Planned Maintenance
267,DCMS,EH,23/03/2015,Pearce Const Barnstaple Ltd,40094478,"57,673.48",National Collections-Capital Investment Programme,WIP Operational Building Works
268,DCMS,EH,09/04/2015,Pearce Const Barnstaple Ltd,40098167,"76,378.15",National Collections-Capital Investment Programme,WIP Operational Building Works
269,DCMS,EH,09/04/2015,Pearce Const Barnstaple Ltd,40098167,"12,464.31",National Collections-Capital Investment Programme,Works for Heritage Buildings
270,DCMS,EH,09/04/2015,Pearce Const Barnstaple Ltd,40098167,"73,807.63",National Collections-Property Maintenance Programme,Planned Maintenance
271,DCMS,EH,20/03/2015,Penguin Books Ltd,77000998,"38,925.00",National Collections-Historic Properties Department,Stock Goods and Souvenirs
272,DCMS,EH,10/04/2015,Peter Silk of Helmsley Ltd,40097447,"31,412.40",National Collections-Capital Investment Programme,Fees for Professional Advice
273,DCMS,EH,17/03/2015,Pierra Restoration Ltd,40094365,"28,511.00",National Collections-Major Conservation Projects,Works for Heritage Buildings
274,DCMS,EH,07/04/2015,Pierra Restoration Ltd,40097900,"37,050.36",National Collections-Major Conservation Projects,Works for Heritage Buildings
275,DCMS,EH,09/04/2015,ProMedia,40097860,"35,059.58",National Collections-Historic Properties Department,Furniture <#10k
276,DCMS,EH,26/03/2015,Quadron Services Ltd,40096248,"14,061.84",National Collections-Property Maintenance Programme,Annual Cyclical Works-Building
277,DCMS,EH,26/03/2015,Quadron Services Ltd,40096248,"8,985.11",National Collections-Property Maintenance Programme,Annual Cyclical Works-Building
278,DCMS,EH,26/03/2015,Quadron Services Ltd,40096248,"4,653.68",National Collections-Property Maintenance Programme,Annual Cyclical Works-Building
279,DCMS,EH,10/04/2015,Quadron Services Ltd,40098351,"32,681.51",National Collections-Property Maintenance Programme,Annual Cyclical Works-Building
280,DCMS,EH,10/04/2015,Quadron Services Ltd,40098351,132.17,National Collections-Property Maintenance Programme,Annual Cyclical Works-Building
281,DCMS,EH,08/04/2015,R Moulding and Co Salisbury Ltd,40097912,"37,245.50",National Collections-Property Maintenance Programme,Annual Cyclical Works-Building
282,DCMS,EH,09/04/2015,Ramboll UK Ltd,40097448,"45,000.00",National Collections-Capital Investment Programme,WIP Professional Works Advice
283,DCMS,EH,09/04/2015,Ramboll UK Ltd,40098154,"30,000.00",National Collections-Major Conservation Projects,Fees for Professional Advice
284,DCMS,EH,09/03/2015,Ratcliffes,40093982,"283,500.00",Resources-Office Estate,Rent - Operating Leases
285,DCMS,EH,16/03/2015,Redec Limited,40093787,"40,660.90",National Collections-Capital Investment Programme,Responsive Maint Building
286,DCMS,EH,10/04/2015,Redec Limited,40095295,"44,782.16",National Collections-Capital Investment Programme,Responsive Maint Building
287,DCMS,EH,31/03/2015,Robert Woodhead Ltd,40097072,"35,203.90",National Collections-Major Conservation Projects,Planned Maintenance
288,DCMS,EH,11/03/2015,Sally Strachey Historic Conservation,40093145,"52,636.54",National Collections-Major Conservation Projects,Fees for Professional Advice
289,DCMS,EH,20/03/2015,Shropshire Council,90514208,"46,114.00",Heritage Protection & Planning-Nat. Planning & Conservation,AREAGRANTS PAYABLE AREA
290,DCMS,EH,16/03/2015,Smith & Milton Bristol Limited,40094649,"31,825.98",National Collections-Marketing,Marketing Creative
291,DCMS,EH,25/03/2015,SoftwareOne UK Ltd,40095896,"8,407.43",Resources-IMT,Software Licences > #10k
292,DCMS,EH,25/03/2015,SoftwareOne UK Ltd,40095896,"37,137.31",Resources-IMT,Software Licences > #10k
293,DCMS,EH,25/03/2015,SoftwareOne UK Ltd,40095896,"19,250.70",Resources-IMT,Software Licences > #10k
294,DCMS,EH,13/04/2015,Solar Communications Ltd,40098394,"-14,629.20",Resources-Office Estate,Computer Equipment <#10k
295,DCMS,EH,17/03/2015,South Kesteven District Council,90514183,"33,023.00",Heritage Protection & Planning-Nat. Planning & Conservation,AREAGRANTS PAYABLE AREA
296,DCMS,EH,31/03/2015,Specialist Computer Centres plc,40094932,"64,527.60",Resources-IMT,Computer Equipment > #10k
297,DCMS,EH,31/03/2015,Specialist Computer Centres plc,40094932,"4,548.00",Resources-IMT,Computer Equipment > #10k
298,DCMS,EH,31/03/2015,Specialist Computer Centres plc,40094932,"67,917.60",Resources-IMT,Computer Equipment > #10k
299,DCMS,EH,31/03/2015,Specialist Computer Centres plc,40094932,"4,548.00",Resources-IMT,Computer Equipment > #10k
300,DCMS,EH,31/03/2015,Specialist Computer Centres plc,40094932,"13,731.96",Resources-IMT,Computer Equipment > #10k
301,DCMS,EH,31/03/2015,Specialist Computer Centres plc,40096512,"1,890.96",Resources-IMT,Computer Equipment <#10k
302,DCMS,EH,31/03/2015,Specialist Computer Centres plc,40096512,"28,955.52",Resources-IMT,Computer Equipment <#10k
303,DCMS,EH,31/03/2015,Specialist Computer Centres plc,40096512,"6,115.20",Resources-IMT,Computer Equipment <#10k
304,DCMS,EH,31/03/2015,Specialist Computer Centres plc,40096512,"2,067.12",Resources-IMT,Computer Equipment <#10k
305,DCMS,EH,31/03/2015,Specialist Computer Centres plc,40096512,404.4,Resources-IMT,Computer Equipment <#10k
306,DCMS,EH,31/03/2015,Specialist Computer Centres plc,40096512,"3,619.44",Resources-IMT,Computer Equipment <#10k
307,DCMS,EH,31/03/2015,Specialist Computer Centres plc,40096512,"7,741.44",Resources-IMT,Computer Equipment <#10k
308,DCMS,EH,02/04/2015,Specialist Computer Centres plc,40097197,"2,137.56",Resources-IMT,Computer Equipment > #10k
309,DCMS,EH,02/04/2015,Specialist Computer Centres plc,40097197,"30,327.97",Resources-IMT,Computer Equipment > #10k
310,DCMS,EH,13/04/2015,Specialist Computer Centres plc,40097820,"36,682.77",Resources-IMT,Computer Equipment <#10k
311,DCMS,EH,13/04/2015,Specialist Computer Centres plc,40098042,"44,728.32",Resources-IMT,Computer Equipment <#10k
312,DCMS,EH,06/03/2015,St Denys PCC,82003657,"39,500.00",Heritage Protection & Planning-Nat. Planning & Conservation,PLACES OF WORSHIPGRANTS PAYABLE PLACES OF WORSHIP
313,DCMS,EH,23/03/2015,STM Security Group  UK Ltd,40094538,"-10,972.51",National Collections-Property Maintenance Programme,Security Guard & Monitor Stati
314,DCMS,EH,23/03/2015,STM Security Group  UK Ltd,40094539,"-24,477.60",National Collections-Property Maintenance Programme,Security Guard & Monitor Stati
315,DCMS,EH,13/04/2015,Stone Edge Conservation Ltd,40097848,"28,828.88",National Collections-Major Conservation Projects,Works for Heritage Buildings
316,DCMS,EH,25/03/2015,Stydd Hall Farm,82003779,"29,738.00",Heritage Protection & Planning-Nat. Planning & Conservation,HISTORIC BUILDINGSGRANTS PAYABLE HISTORIC BUILDINGS
317,DCMS,EH,16/03/2015,Suffolk Coastal District Council,82003695,"53,777.00",Heritage Protection & Planning-Nat. Planning & Conservation,HISTORIC BUILDINGSGRANTS PAYABLE HISTORIC BUILDINGS
318,DCMS,EH,02/04/2015,Sykes and Son Limited,40097470,"31,305.31",National Collections-Property Maintenance Programme,Responsive Repairs M & E
319,DCMS,EH,02/04/2015,Sykes and Son Limited,40097470,"3,102.00",National Collections-Property Maintenance Programme,Responsive Repairs M & E
320,DCMS,EH,02/04/2015,Sykes and Son Limited,40097470,185.76,National Collections-Property Maintenance Programme,Responsive Repairs M & E
321,DCMS,EH,24/03/2015,The Architectural Heritage Fund,20069057,"500,000.00",Heritage Protection & Planning-Nat. Planning & Conservation,Regional Capacity Building
322,DCMS,EH,06/03/2015,The Architectural Heritage Fund,90514156,"48,345.00",Heritage Protection & Planning-Nat. Planning & Conservation,OTHER GRANTSGRANTS PAYABLE OTHER GRANTS
323,DCMS,EH,03/03/2015,The Bay Tree Food Company LLP,77000737,"16,632.00",National Collections-Historic Properties Department,Stock Goods and Souvenirs
324,DCMS,EH,03/03/2015,The Bay Tree Food Company LLP,77000737,"4,479.24",National Collections-Historic Properties Department,Stock Goods and Souvenirs
325,DCMS,EH,03/03/2015,The Bay Tree Food Company LLP,77000737,"8,409.17",National Collections-Historic Properties Department,Stock Goods and Souvenirs
326,DCMS,EH,03/03/2015,The Bay Tree Food Company LLP,77000737,"4,205.40",National Collections-Historic Properties Department,Stock Goods and Souvenirs
327,DCMS,EH,03/03/2015,The Bay Tree Food Company LLP,77000737,"3,623.49",National Collections-Historic Properties Department,Stock Goods and Souvenirs
328,DCMS,EH,03/03/2015,The Bay Tree Food Company LLP,77000737,"3,597.41",National Collections-Historic Properties Department,Stock Goods and Souvenirs
329,DCMS,EH,03/03/2015,The Bay Tree Food Company LLP,77000737,"2,148.34",National Collections-Historic Properties Department,Stock Goods and Souvenirs
330,DCMS,EH,03/03/2015,The Bay Tree Food Company LLP,77000737,"1,662.60",National Collections-Historic Properties Department,Stock Goods and Souvenirs
331,DCMS,EH,03/03/2015,The Bay Tree Food Company LLP,77000737,184.19,National Collections-Historic Properties Department,Stock Goods and Souvenirs
332,DCMS,EH,03/03/2015,The Bay Tree Food Company LLP,77000737,788.98,National Collections-Historic Properties Department,Stock Goods and Souvenirs
333,DCMS,EH,03/03/2015,The Bay Tree Food Company LLP,77000737,125.51,National Collections-Historic Properties Department,Stock Goods and Souvenirs
334,DCMS,EH,03/03/2015,The Bay Tree Food Company LLP,77000737,408,National Collections-Historic Properties Department,Stock Goods and Souvenirs
335,DCMS,EH,06/03/2015,The Heritage Alliance,90514152,"33,344.00",Heritage Protection & Planning-Nat. Planning & Conservation,OTHER GRANTSGRANTS PAYABLE OTHER GRANTS
336,DCMS,EH,16/03/2015,The Historic Chapels Trust,82003693,"29,528.00",Heritage Protection & Planning-Nat. Planning & Conservation,HISTORIC BUILDINGSGRANTS PAYABLE HISTORIC BUILDINGS
337,DCMS,EH,16/03/2015,The Hooton Park Trust,82003699,"28,615.00",Heritage Protection & Planning-Nat. Planning & Conservation,HISTORIC BUILDINGSGRANTS PAYABLE HISTORIC BUILDINGS
338,DCMS,EH,07/04/2015,The National Trust Wiltshire,40096148,"48,655.86",National Collections-Historic Properties Department,Rent - Operating Leases
339,DCMS,EH,06/03/2015,The National Trust Wiltshire,90514153,"150,655.00",Heritage Protection & Planning-Nat. Planning & Conservation,OTHER GRANTSGRANTS PAYABLE OTHER GRANTS
340,DCMS,EH,30/03/2015,The National Trust Wiltshire,90514255,"122,000.00",Heritage Protection & Planning-Nat. Planning & Conservation,OTHER GRANTSGRANTS PAYABLE OTHER GRANTS
341,DCMS,EH,17/03/2015,The Oakes Trust (Sheffield),82003707,"45,000.00",Heritage Protection & Planning-Nat. Planning & Conservation,HISTORIC BUILDINGSGRANTS PAYABLE HISTORIC BUILDINGS
342,DCMS,EH,20/03/2015,The Shakespeare Birthplace Trust,20069036,"1,000,000.00",Heritage Protection & Planning-Nat. Planning & Conservation,Buildings and Monuments
343,DCMS,EH,02/03/2015,The Team Brand Communication Consultants,40092536,"8,371.20",Resources-IMT,WIP Computer Consultancy
344,DCMS,EH,02/03/2015,The Team Brand Communication Consultants,40092536,"23,664.00",Resources-IMT,WIP Computer Consultancy
345,DCMS,EH,06/03/2015,The Twentieth Century Soc,90514147,"44,905.00",Heritage Protection & Planning-Nat. Planning & Conservation,OTHER GRANTSGRANTS PAYABLE OTHER GRANTS
346,DCMS,EH,13/04/2015,Treasure and Son,40097924,"35,466.35",National Collections-Property Maintenance Programme,Annual Cyclical Works-Building
347,DCMS,EH,13/04/2015,Treasure and Son,40097924,339.74,National Collections-Property Maintenance Programme,Annual Cyclical Works-Building
348,DCMS,EH,05/03/2015,Tribal Education Ltd,40093580,"57,296.40",Resources-IMT,Software Maintenance
349,DCMS,EH,20/03/2015,Tyne & Wear Building Preservation Trust,82003729,"30,316.00",Heritage Protection & Planning-Nat. Planning & Conservation,HISTORIC BUILDINGSGRANTS PAYABLE HISTORIC BUILDINGS
350,DCMS,EH,20/03/2015,UK Historic Building Preservation Trust,82003737,"91,736.00",Heritage Protection & Planning-Nat. Planning & Conservation,HISTORIC BUILDINGSGRANTS PAYABLE HISTORIC BUILDINGS
351,DCMS,EH,30/03/2015,University of Southampton,40096525,"30,000.00",Heritage Protection & Planning-Heritage Protection,Hist Environ Prog Projects Gra
352,DCMS,EH,17/03/2015,University of York,40093239,"25,000.00",Heritage Protection & Planning-Heritage Protection,Hist Environ Prog Projects Gra
353,DCMS,EH,17/03/2015,Urban Splash (Royal William Yard) Ltd,82003705,"166,545.00",Heritage Protection & Planning-Nat. Planning & Conservation,HISTORIC BUILDINGSGRANTS PAYABLE HISTORIC BUILDINGS
354,DCMS,EH,25/03/2015,Urban Splash (Royal William Yard) Ltd,82003773,"29,532.00",Heritage Protection & Planning-Nat. Planning & Conservation,HISTORIC BUILDINGSGRANTS PAYABLE HISTORIC BUILDINGS
355,DCMS,EH,30/03/2015,Vodafone Corporate Ltd,20069123,"49,094.16",Resources-Corporate,Mobile Phone Costs
356,DCMS,EH,19/03/2015,W H Smith and R Ensor SAP Scheme,40095454,"35,516.40",Resources-Office Estate,Rent - Operating Leases
357,DCMS,EH,10/03/2015,Wagstaff Bros Ltd t/a Wagstaff Interiors,40093511,"26,327.46",Resources-Office Estate,Wrks for Operational Buildings
358,DCMS,EH,13/04/2015,Wagstaff Bros Ltd t/a Wagstaff Interiors,40098633,"34,211.53",Resources-Office Estate,Wrks for Operational Buildings
359,DCMS,EH,16/03/2015,Wakefield Metropolitan District Council,82003700,"37,500.00",Heritage Protection & Planning-Nat. Planning & Conservation,HISTORIC BUILDINGSGRANTS PAYABLE HISTORIC BUILDINGS
360,DCMS,EH,26/03/2015,War Memorials Trust,90514246,"50,000.00",Heritage Protection & Planning-Nat. Planning & Conservation,OTHER GRANTSGRANTS PAYABLE OTHER GRANTS
361,DCMS,EH,26/03/2015,War Memorials Trust,90514248,"39,587.00",Heritage Protection & Planning-Nat. Planning & Conservation,OTHER GRANTSGRANTS PAYABLE OTHER GRANTS
362,DCMS,EH,25/03/2015,Wells Masonry Services Ltd,40093852,"17,329.20",National Collections-Major Conservation Projects,Works for Heritage Buildings
363,DCMS,EH,25/03/2015,Wells Masonry Services Ltd,40093852,"12,637.36",National Collections-Property Maintenance Programme,Planned Maintenance
364,DCMS,EH,18/03/2015,Wessex Archaeology,40091273,"50,000.00",Heritage Protection & Planning-Heritage Protection,Hist Environ Prog Projects Gra
365,DCMS,EH,25/03/2015,Wessex Archaeology,40095366,"81,753.65",Heritage Protection & Planning-Heritage Protection,Hist Environ Prog Projects Gra
366,DCMS,EH,31/03/2015,Whitby Specialist Vehicle Ltd T/A Whitby,40095577,280,National Collections-Capital Investment Programme,Vehicles > #10k
367,DCMS,EH,31/03/2015,Whitby Specialist Vehicle Ltd T/A Whitby,40095577,"59,281.20",National Collections-Capital Investment Programme,Vehicles > #10k
368,DCMS,EH,08/04/2015,Wise Worksafe,40097308,"28,248.00",National Collections-Historic Properties Department,Welfare Services
369,DCMS,EH,19/03/2015,Wyndeham (Roche) Ltd,40094423,"149,792.00",National Collections-Marketing,Print and Production
370,DCMS,EH,19/03/2015,Wyndeham (Roche) Ltd,40094423,"5,514.00",National Collections-Marketing,Print and Production
371,DCMS,EH,19/03/2015,Wyndeham (Roche) Ltd,40094424,"105,872.25",National Collections-Marketing,Print and Production
372,DCMS,EH,19/03/2015,Wyndeham (Roche) Ltd,40094424,"8,798.40",National Collections-Marketing,Print and Production
373,DCMS,EH,11/03/2015,York University,81003282,"26,000.00",Heritage Protection & Planning-Heritage Protection,ENABLING PROGRAMMESENABLING PROGRAMMES ENABLING PROGRAMMES
374,DCMS,EH,17/03/2015,Yorkshire Dales National Park Authority,82003702,"39,100.00",Heritage Protection & Planning-Nat. Planning & Conservation,HISTORIC BUILDINGSGRANTS PAYABLE HISTORIC BUILDINGS
